bitfinex/quotes_BTCUSD_20240729
["timestamp","ask_amount","ask_price","bid_price","bid_amount"]
[1722215266476,7.88403781,68868.0,68867.0,0.008987]
[1722215266803,7.88496118,68868.0,68867.0,0.008987]
[1722215267372,7.87096118,68868.0,68867.0,0.008987]
[1722215267684,7.98496118,68868.0,68867.0,0.008987]
[1722215268464,7.98496118,68868.0,68861.0,0.002]
[1722215268465,0.01227376,68862.0,68861.0,0.002]
[1722215268712,1.12409276,68852.0,68847.0,0.5519]
[1722215269032,4.71829503,68852.0,68847.0,0.0761]
[1722215269182,2.62865903,68852.0,68851.0,0.1428]
[1722215269382,2.36523703,68852.0,68851.0,0.1428]
[1722215269800,2.38805003,68852.0,68851.0,0.1428]
[1722215270007,2.15710516,68852.0,68851.0,0.1378]
[1722215270215,1.98546416,68852.0,68851.0,0.1378]
[1722215270618,1.96258418,68852.0,68851.0,0.1378]
[1722215271433,2.17542267,68852.0,68851.0,0.1378]
[1722215271879,1.96258418,68852.0,68851.0,0.1378]
[1722215272240,2.17539636,68852.0,68851.0,0.1378]
[1722215272752,2.17593697,68852.0,68851.0,0.1378]
[1722215272949,1.9859375,68852.0,68851.0,0.1378]
[1722215273157,2.19873512,68852.0,68851.0,0.1378]
[1722215273487,2.16192241,68852.0,68851.0,0.1378]
[1722215273847,1.94912358,68852.0,68851.0,0.1378]
[1722215274963,1.96432219,68852.0,68851.0,0.1378]
[1722215276332,1.96384443,68852.0,68851.0,0.1378]
[1722215276736,1.98665714,68852.0,68851.0,0.1378]
[1722215277154,1.88364314,68852.0,68851.0,0.1378]
[1722215277795,1.86083043,68852.0,68851.0,0.1378]
[1722215277993,1.87483043,68852.0,68851.0,0.1378]
[1722215278190,1.86083043,68852.0,68851.0,0.1378]
[1722215278714,1.87483043,68852.0,68851.0,0.138724]
[1722215279223,1.87483043,68852.0,68851.0,0.074024]
[1722215279552,1.87474554,68852.0,68851.0,0.074024]
[1722215279914,1.87727993,68852.0,68851.0,0.074024]
[1722215280155,1.87727762,68852.0,68851.0,0.074024]
[1722215281831,1.87725557,68852.0,68851.0,0.074024]
[1722215283543,1.87725557,68852.0,68851.0,0.06907413]
[1722215284976,2.05472499,68852.0,68851.0,0.06907413]
[1722215285177,2.07753769,68852.0,68851.0,0.06907413]
[1722215287293,2.29026554,68852.0,68851.0,0.06907413]
[1722215288234,2.15528523,68852.0,68851.0,0.06907413]
[1722215288444,2.29085622,68852.0,68851.0,0.06907413]
[1722215289034,2.27858246,68852.0,68851.0,0.06907413]
[1722215289969,2.29085622,68852.0,68851.0,0.000924]
[1722215290957,2.26804352,68852.0,68851.0,0.000924]
[1722215291364,2.05534777,68852.0,68851.0,0.000924]
[1722215291560,2.26816593,68852.0,68851.0,0.000924]
[1722215291990,2.26816544,68852.0,68851.0,0.000924]
[1722215292379,2.05534613,68852.0,68851.0,0.000924]
[1722215294453,1.91961276,68852.0,68851.0,0.000924]
[1722215294694,2.07800995,68852.0,68851.0,0.000924]
[1722215295234,0.83989719,68852.0,68851.0,0.1615764]
[1722215295551,0.81882111,68852.0,68851.0,0.16817299]
[1722215295903,1.05120311,68852.0,68851.0,0.146824]
[1722215297241,1.07401415,68852.0,68851.0,0.146824]
[1722215297437,1.17401415,68852.0,68851.0,0.146824]
[1722215297644,1.0384298,68852.0,68851.0,0.146824]
[1722215297857,0.46529958,68852.0,68851.0,0.146824]
[1722215298291,0.94233734,68852.0,68851.0,0.146824]
[1722215298527,0.92833734,68852.0,68851.0,0.146824]
[1722215298868,0.23257419,68852.0,68851.0,0.146824]
[1722215299073,0.23257419,68852.0,68851.0,0.22854543]
[1722215299271,0.3788311,68852.0,68851.0,0.2635526]
[1722215299514,0.23257419,68852.0,68851.0,0.2635526]
[1722215299726,0.23257419,68852.0,68851.0,0.30127884]
[1722215299984,0.17429919,68852.0,68851.0,0.2635526]
[1722215300194,0.01227376,68863.0,68856.0,0.25391024]
[1722215300195,0.058258,68857.0,68856.0,0.25391024]
[1722215300392,0.18090952,68857.0,68856.0,0.94684824]
[1722215300596,0.10830815,68867.0,68866.0,0.03972624]
[1722215300718,0.00084,68871.0,68870.0,0.03972624]
[1722215300920,0.00084,68871.0,68870.0,0.6924405]
[1722215300921,0.10909656,68871.0,68870.0,0.6924405]
[1722215301125,0.00084,68871.0,68870.0,0.41748979]
[1722215301374,0.00084,68871.0,68870.0,0.53347069]
[1722215301574,0.06574977,68871.0,68870.0,0.53347069]
[1722215301799,0.06574977,68871.0,68870.0,0.41731069]
[1722215302444,0.00084,68871.0,68870.0,0.41731069]
[1722215303172,0.00084,68871.0,68870.0,0.31145466]
[1722215303372,0.00084,68871.0,68870.0,0.23274457]
[1722215303783,0.00084,68871.0,68870.0,0.24174457]
[1722215303784,0.00184,68871.0,68870.0,0.24174457]
[1722215304009,0.00184,68871.0,68870.0,0.27247081]
[1722215304165,0.00184,68871.0,68870.0,0.38863081]
[1722215304374,0.04505471,68871.0,68870.0,0.27247081]
[1722215304580,0.00084,68871.0,68870.0,0.45172749]
[1722215305204,0.00084,68871.0,68870.0,0.33556749]
[1722215305906,0.00084,68871.0,68870.0,0.52685728]
[1722215306310,0.00084,68871.0,68870.0,0.86781249]
[1722215306527,0.00084,68871.0,68870.0,1.16121249]
[1722215306737,0.00084,68871.0,68870.0,1.15821249]
[1722215307166,0.00184,68871.0,68870.0,1.16421249]
[1722215307586,0.02464278,68871.0,68870.0,1.16421249]
[1722215308395,0.02464278,68871.0,68870.0,1.62885449]
[1722215308589,0.02464278,68871.0,68870.0,1.39653349]
[1722215308792,0.00184,68871.0,68870.0,1.39653349]
[1722215310832,0.00184,68871.0,68870.0,1.54983349]
[1722215311460,0.00184,68871.0,68870.0,1.78215449]
[1722215313102,0.00084,68871.0,68870.0,1.77615449]
[1722215313316,0.00084,68871.0,68870.0,1.79015449]
[1722215313317,0.00184,68871.0,68870.0,1.79015449]
[1722215313522,0.02464013,68871.0,68870.0,1.55783349]
[1722215313729,0.00184,68871.0,68870.0,1.55783349]
[1722215313934,0.00184,68871.0,68870.0,1.79015449]
[1722215314546,0.00184,68871.0,68870.0,1.55783349]
[1722215314961,0.00184,68871.0,68870.0,1.79015449]
[1722215316611,0.02464025,68871.0,68870.0,1.55783349]
[1722215317044,0.02464025,68871.0,68870.0,1.79015449]
[1722215317327,0.00184,68871.0,68870.0,1.79015449]
[1722215317547,0.00184,68871.0,68870.0,1.55783349]
[1722215318427,0.00184,68871.0,68870.0,1.4827037]
[1722215318654,0.00184,68871.0,68870.0,1.0970827]
[1722215318882,0.00184,68871.0,68870.0,0.83403546]
[1722215319114,0.00184,68871.0,68870.0,1.3294037]
[1722215319800,0.00184,68871.0,68870.0,1.0970827]
[1722215320001,0.00184,68871.0,68870.0,0.66787546]
[1722215320205,0.02464121,68871.0,68870.0,0.71787546]
[1722215320872,0.02464121,68871.0,68870.0,0.55767546]
[1722215321508,0.00184,68871.0,68870.0,0.39167546]
[1722215321712,0.00184,68871.0,68870.0,0.47447546]
[1722215321916,0.00184,68871.0,68870.0,0.58033149]
[1722215322533,0.00184,68871.0,68870.0,0.92881249]
[1722215322997,0.00184,68871.0,68870.0,0.58033149]
[1722215323207,0.00184,68871.0,68870.0,0.69649149]
[1722215323412,0.00184,68871.0,68870.0,0.92881249]
[1722215324276,0.00184,68871.0,68870.0,1.55463349]
[1722215324691,0.0246413,68871.0,68870.0,1.55463349]
[1722215325819,0.00184,68871.0,68870.0,1.55463349]
[1722215327934,0.00184,68871.0,68870.0,1.78695449]
[1722215328483,0.00084,68875.0,68874.0,0.71149624]
[1722215328686,0.00084,68875.0,68874.0,1.46938975]
[1722215328887,0.03519585,68875.0,68874.0,1.23708175]
[1722215329090,0.05799598,68875.0,68874.0,1.23708175]
[1722215329270,0.02364013,68875.0,68874.0,1.05503332]
[1722215329471,0.02364013,68875.0,68874.0,1.09233332]
[1722215329472,0.0576102,68875.0,68874.0,1.09233332]
[1722215329678,0.0576102,68875.0,68874.0,1.24563332]
[1722215330027,0.05761434,68875.0,68874.0,1.47794132]
[1722215330867,0.03481421,68875.0,68874.0,1.47794132]
[1722215331730,0.03601376,68875.0,68874.0,1.49194132]
[1722215332664,0.03501209,68875.0,68874.0,1.47794132]
[1722215332871,0.03601209,68875.0,68874.0,1.49094132]
[1722215333291,0.03501209,68875.0,68874.0,1.47794132]
[1722215333493,0.03501209,68875.0,68874.0,1.49194132]
[1722215333494,0.03601209,68875.0,68874.0,1.49194132]
[1722215334090,0.03601209,68875.0,68874.0,0.54434508]
[1722215334298,0.03601209,68875.0,68874.0,0.79082532]
[1722215334921,0.03601209,68875.0,68874.0,0.66067132]
[1722215335148,0.03501209,68875.0,68874.0,0.52994508]
[1722215335352,0.03601209,68875.0,68874.0,0.54294508]
[1722215335770,0.03619602,68875.0,68874.0,0.54294508]
[1722215335971,0.03719601,68875.0,68874.0,0.55194508]
[1722215336123,0.03719601,68875.0,68874.0,0.65194508]
[1722215336373,0.03719601,68875.0,68874.0,0.55194508]
[1722215337768,0.15334801,68875.0,68874.0,0.40168551]
[1722215338252,0.38565201,68875.0,68874.0,0.40168551]
[1722215338402,0.38565201,68875.0,68874.0,0.31888551]
[1722215338403,0.82847623,68875.0,68874.0,0.31888551]
[1722215338608,0.84774999,68875.0,68874.0,0.31888551]
[1722215338809,0.97787776,68875.0,68874.0,0.31888551]
[1722215338988,1.08200831,68875.0,68874.0,0.31239]
[1722215339190,1.08245411,68875.0,68874.0,0.31239]
[1722215339403,1.12558423,68875.0,68874.0,0.31848286]
[1722215339744,1.12558423,68875.0,68874.0,0.31849322]
[1722215339745,1.14714914,68875.0,68874.0,0.31849322]
[1722215340463,1.14714914,68875.0,68874.0,0.32924246]
[1722215340464,1.14514914,68875.0,68874.0,0.32924246]
[1722215340861,1.17371405,68875.0,68874.0,0.33024246]
[1722215341286,1.01951673,68875.0,68874.0,0.33024246]
[1722215341429,1.17143052,68875.0,68874.0,0.33024246]
[1722215341645,1.08507909,68875.0,68874.0,0.33024246]
[1722215341969,1.19301838,68875.0,68874.0,0.32413924]
[1722215342133,1.2158225,68875.0,68874.0,0.32413924]
[1722215342334,1.2158225,68875.0,68874.0,0.33024246]
[1722215342594,1.08507909,68875.0,68874.0,0.32413924]
[1722215342778,1.08507909,68875.0,68874.0,0.33024246]
[1722215342982,1.08507909,68875.0,68874.0,0.29749322]
[1722215344066,1.0834963,68875.0,68874.0,0.29749322]
[1722215344272,1.0854963,68875.0,68874.0,0.29139]
[1722215344675,1.0854963,68875.0,68874.0,0.29903083]
[1722215344874,2.5139073,68875.0,68874.0,0.29903083]
[1722215345080,3.1263153,68875.0,68874.0,0.29139]
[1722215345383,3.2491204,68875.0,68874.0,0.29139]
[1722215346103,3.2263153,68875.0,68874.0,0.29139]
[1722215346481,3.2263153,68875.0,68874.0,0.29039]
[1722215346682,3.2193153,68875.0,68874.0,0.29039]
[1722215346884,3.2333153,68875.0,68874.0,0.29139]
[1722215348113,3.2563153,68875.0,68874.0,0.29139]
[1722215349148,3.27912279,68875.0,68874.0,0.29139]
[1722215349711,3.2563153,68875.0,68874.0,0.29139]
[1722215350125,3.25884913,68875.0,68874.0,0.29139]
[1722215350680,3.25884028,68875.0,68874.0,0.29139]
[1722215351046,3.25866252,68875.0,68874.0,0.29139]
[1722215352264,2.41507152,68875.0,68874.0,0.3206214]
[1722215352495,1.77925752,68875.0,68874.0,0.3206214]
[1722215352718,1.44392852,68875.0,68874.0,0.3206214]
[1722215352971,0.54803552,68875.0,68874.0,0.3206214]
[1722215353189,0.48906697,68875.0,68874.0,0.3206214]
[1722215353406,0.48906697,68875.0,68874.0,0.32981101]
[1722215353631,0.6402128,68875.0,68874.0,0.3206214]
[1722215353857,0.74192872,68875.0,68874.0,0.32981101]
[1722215354306,0.25804696,68875.0,68874.0,0.32981101]
[1722215354540,0.13936113,68875.0,68874.0,0.32981101]
[1722215354715,0.13936113,68875.0,68874.0,0.32881101]
[1722215354716,0.05785259,68875.0,68874.0,0.32881101]
[1722215354929,0.05785259,68875.0,68874.0,0.32981101]
[1722215354930,0.06485259,68875.0,68874.0,0.32981101]
[1722215355134,0.06485259,68875.0,68874.0,0.35953725]
[1722215355383,0.06485259,68875.0,68874.0,0.32881101]
[1722215355598,0.06985259,68875.0,68874.0,0.32981101]
[1722215356444,0.05785259,68875.0,68874.0,0.35953725]
[1722215356707,0.05785259,68875.0,68874.0,0.32981101]
[1722215356708,0.16582993,68875.0,68874.0,0.32981101]
[1722215356886,0.16501421,68875.0,68874.0,0.32981101]
[1722215357087,0.16501421,68875.0,68874.0,0.30057961]
[1722215357088,0.42476801,68875.0,68874.0,0.30057961]
[1722215357288,0.78960914,68875.0,68874.0,0.30057961]
[1722215357493,1.02191314,68875.0,68874.0,0.30057961]
[1722215357694,1.02391314,68875.0,68874.0,0.29139]
[1722215358050,0.78960914,68875.0,68874.0,0.29903621]
[1722215358321,0.53803138,68875.0,68874.0,0.32990373]
[1722215358607,0.47223138,68875.0,68874.0,0.32890373]
[1722215358834,0.47223138,68875.0,68874.0,0.32990373]
[1722215358835,0.72880914,68875.0,68874.0,0.32990373]
[1722215359004,0.70953538,68875.0,68874.0,0.32890373]
[1722215359194,0.47723138,68875.0,68874.0,0.32990373]
[1722215359395,0.48423138,68875.0,68874.0,0.32990373]
[1722215359594,0.71153538,68875.0,68874.0,0.32890373]
[1722215359774,0.47923138,68875.0,68874.0,0.32890373]
[1722215359976,0.13555752,68875.0,68874.0,0.32890373]
[1722215360179,0.25262982,68875.0,68874.0,0.32890373]
[1722215360392,0.27098328,68875.0,68874.0,0.32890373]
[1722215360752,0.25171609,68875.0,68874.0,0.32890373]
[1722215361104,0.24071609,68875.0,68874.0,0.32890373]
[1722215361553,0.24771609,68875.0,68874.0,0.32990373]
[1722215361734,0.24771609,68875.0,68874.0,0.32890373]
[1722215362139,0.25171609,68875.0,68874.0,0.32890373]
[1722215363120,0.38136151,68875.0,68874.0,0.32890373]
[1722215363257,0.1349779,68875.0,68874.0,0.32890373]
[1722215363972,0.15425166,68875.0,68874.0,0.32890373]
[1722215364174,0.1365321,68875.0,68874.0,0.32890373]
[1722215364576,0.2526841,68875.0,68874.0,0.32890373]
[1722215364797,0.2511299,68875.0,68874.0,0.32890373]
[1722215364999,0.40096221,68875.0,68874.0,0.32890373]
[1722215365205,0.38077522,68875.0,68874.0,0.32890373]
[1722215366380,0.38061168,68875.0,68874.0,0.32890373]
[1722215366583,0.38062125,68875.0,68874.0,0.32890373]
[1722215367373,0.36962125,68875.0,68874.0,0.32890373]
[1722215367574,0.34681604,68875.0,68874.0,0.32890373]
[1722215367775,0.35081604,68875.0,68874.0,0.32890373]
[1722215368001,0.34681604,68875.0,68874.0,0.32890373]
[1722215368403,0.34681604,68875.0,68874.0,0.32990373]
[1722215369627,0.21714083,68875.0,68874.0,0.32990373]
[1722215369826,0.34716527,68875.0,68874.0,0.32990373]
[1722215370070,0.36996829,68875.0,68874.0,0.32990373]
[1722215370285,0.25377039,68875.0,68874.0,0.32990373]
[1722215370659,0.12408616,68875.0,68874.0,0.32990373]
[1722215371665,0.12492179,68875.0,68874.0,0.32990373]
[1722215371840,0.12408616,68875.0,68874.0,0.32990373]
[1722215372747,0.04447098,68875.0,68874.0,0.32990373]
[1722215372947,0.25893231,68875.0,68874.0,0.32225752]
[1722215373172,0.86604031,68875.0,68874.0,0.30057011]
[1722215373526,0.98230431,68875.0,68874.0,0.30057011]
[1722215373636,1.21460831,68875.0,68874.0,0.30057011]
[1722215373836,0.98230431,68875.0,68874.0,0.30057011]
[1722215374674,0.98230431,68875.0,68874.0,0.29957011]
[1722215374877,0.98783758,68875.0,68874.0,0.29957011]
[1722215375488,1.60508558,68875.0,68874.0,0.29957011]
[1722215375872,1.50522205,68875.0,68874.0,0.29039]
[1722215376070,1.60430256,68875.0,68874.0,0.29039]
[1722215376272,1.83660656,68875.0,68874.0,0.29039]
[1722215376634,1.81083156,68875.0,68874.0,0.29039]
[1722215378971,1.78802854,68875.0,68874.0,0.29039]
[1722215379179,1.68894803,68875.0,68874.0,0.29039]
[1722215379391,1.78838204,68875.0,68874.0,0.29039]
[1722215379587,1.68894803,68875.0,68874.0,0.29039]
[1722215379835,1.78837978,68875.0,68874.0,0.29039]
[1722215380037,1.08264278,68875.0,68874.0,0.3195214]
[1722215380235,1.28337578,68875.0,68874.0,0.32608025]
[1722215380472,1.28337578,68875.0,68874.0,0.29694885]
[1722215380826,1.18394403,68875.0,68874.0,0.29694885]
[1722215381030,1.28334556,68875.0,68874.0,0.29694885]
[1722215381455,1.2640718,68875.0,68874.0,0.29694885]
[1722215381656,1.28534556,68875.0,68874.0,0.29694885]
[1722215381988,1.28522056,68875.0,68874.0,0.29694885]
[1722215382479,1.28516864,68875.0,68874.0,0.29694885]
[1722215385824,1.28509548,68875.0,68874.0,0.29694885]
[1722215386043,1.30790004,68875.0,68874.0,0.29694885]
[1722215387187,1.28509548,68875.0,68874.0,0.29694885]
[1722215388458,1.28509548,68875.0,68874.0,0.29039]
[1722215389018,1.18594403,68875.0,68874.0,0.29039]
[1722215389222,1.18594403,68875.0,68874.0,0.3195214]
[1722215389223,1.28482191,68875.0,68874.0,0.3195214]
[1722215389432,1.28482191,68875.0,68874.0,0.32717814]
[1722215389641,1.2848168,68875.0,68874.0,0.32717814]
[1722215390097,1.30762172,68875.0,68874.0,0.32717814]
[1722215390296,1.30762172,68875.0,68874.0,0.29804674]
[1722215390676,1.30762172,68875.0,68874.0,0.29039]
[1722215391176,1.2848168,68875.0,68874.0,0.29039]
[1722215391931,1.28503522,68875.0,68874.0,0.29039]
[1722215393146,1.38503522,68875.0,68874.0,0.29039]
[1722215393761,1.61733922,68875.0,68874.0,0.29039]
[1722215393967,1.8302535,68875.0,68874.0,0.29039]
[1722215394172,1.64014488,68875.0,68874.0,0.29039]
[1722215395128,1.61733922,68875.0,68874.0,0.29039]
[1722215395553,1.61828447,68875.0,68874.0,0.29039]
[1722215397766,1.64109067,68875.0,68874.0,0.29039]
[1722215398696,1.61836914,68875.0,68874.0,0.29039]
[1722215399264,1.61836877,68875.0,68874.0,0.29039]
[1722215399483,1.61836783,68875.0,68874.0,0.29039]
[1722215400422,1.59909407,68875.0,68874.0,0.29039]
[1722215400636,1.61836783,68875.0,68874.0,0.29039]
[1722215401401,1.50713413,68875.0,68874.0,0.3195214]
[1722215401578,1.30829235,68875.0,68874.0,0.29039]
[1722215401775,1.52128725,68875.0,68874.0,0.29039]
[1722215401984,1.54409337,68875.0,68874.0,0.29039]
[1722215402340,1.33109847,68875.0,68874.0,0.29039]
[1722215402552,1.30829235,68875.0,68874.0,0.26758358]
[1722215404082,1.20804403,68875.0,68874.0,0.26758358]
[1722215404289,1.30816829,68875.0,68874.0,0.26758358]
[1722215404880,1.61687229,68875.0,68874.0,0.26758358]
[1722215405084,1.64844329,68875.0,68874.0,0.26758358]
[1722215405293,4.44930329,68875.0,68874.0,0.26758358]
[1722215407001,4.44230329,68875.0,68874.0,0.26758358]
[1722215407203,4.26637903,68875.0,68874.0,0.26758358]
[1722215407403,4.36036258,68875.0,68874.0,0.26850758]
[1722215407606,4.38316957,68875.0,68874.0,0.26850758]
[1722215407802,4.36036258,68875.0,68874.0,0.26850758]
[1722215409141,4.37136258,68875.0,68874.0,0.26850758]
[1722215410607,4.37132682,68875.0,68874.0,0.26850758]
[1722215410820,4.13902282,68875.0,68874.0,0.26850758]
[1722215410995,4.13900741,68875.0,68874.0,0.26850758]
[1722215411192,4.16181436,68875.0,68874.0,0.26850758]
[1722215411427,4.13900741,68875.0,68874.0,0.26850758]
[1722215411632,1.82652741,68875.0,68874.0,0.26850758]
[1722215411810,1.48797041,68875.0,68874.0,0.26850758]
[1722215412163,1.42797941,68875.0,68874.0,0.26850758]
[1722215412986,1.04010041,68875.0,68874.0,0.30316074]
[1722215413234,0.10430565,68875.0,68874.0,0.44806074]
[1722215413383,0.10177238,68875.0,68874.0,0.53726104]
[1722215413606,0.10191209,68875.0,68874.0,0.56446965]
[1722215413938,0.23166982,68875.0,68874.0,0.64989741]
[1722215414139,0.03472582,68875.0,68874.0,0.64989741]
[1722215414483,0.03472582,68875.0,68874.0,0.56446965]
[1722215414831,0.05752788,68875.0,68874.0,0.53374341]
[1722215415330,0.03472582,68875.0,68874.0,0.53374341]
[1722215416677,0.03466051,68875.0,68874.0,0.56446965]
[1722215416828,0.03466051,68875.0,68874.0,0.53374341]
[1722215417035,0.04666051,68875.0,68874.0,0.64989741]
[1722215417232,0.04666051,68875.0,68874.0,0.68062365]
[1722215417893,0.04666051,68875.0,68874.0,1.24523965]
[1722215418290,0.14274018,68875.0,68874.0,1.24523965]
[1722215418665,0.14374018,68875.0,68874.0,1.24523965]
[1722215418867,0.14374018,68875.0,68874.0,0.58374341]
[1722215419071,0.03466051,68875.0,68874.0,0.42396046]
[1722215419272,0.03566051,68875.0,68874.0,0.42396046]
[1722215419477,0.03466051,68875.0,68874.0,0.42396046]
[1722215419683,0.116992,68875.0,68874.0,0.42396046]
[1722215419904,0.17086864,68875.0,68874.0,0.42396046]
[1722215420118,0.03444288,68875.0,68874.0,0.41340758]
[1722215420348,0.03444381,68875.0,68874.0,0.42208513]
[1722215420576,0.03599801,68875.0,68874.0,0.42208513]
[1722215420783,0.40217357,68875.0,68874.0,0.42208513]
[1722215421467,0.86735904,68875.0,68874.0,0.27718513]
[1722215421681,0.85133504,68875.0,68874.0,0.27718513]
[1722215421883,0.84978084,68875.0,68874.0,0.27718513]
[1722215422166,0.24874708,68875.0,68874.0,0.45003624]
[1722215422390,0.18357581,68875.0,68874.0,0.45003624]
[1722215422615,0.03444381,68875.0,68874.0,0.45003624]
[1722215422757,0.03599801,68875.0,68874.0,0.45003624]
[1722215422973,0.03518669,68875.0,68874.0,0.45003624]
[1722215423403,0.03363249,68875.0,68874.0,0.65713624]
[1722215423606,0.14172272,68875.0,68874.0,0.65713624]
[1722215423809,0.14172272,68875.0,68874.0,0.68786248]
[1722215424409,0.03363249,68875.0,68874.0,0.68786248]
[1722215424770,0.03474925,68875.0,68874.0,0.68786248]
[1722215425873,0.03363249,68875.0,68874.0,0.68786248]
[1722215426083,0.12003896,68875.0,68874.0,0.68786248]
[1722215427127,0.12003896,68875.0,68874.0,0.65713624]
[1722215427530,0.03362024,68875.0,68874.0,0.68786248]
[1722215428047,0.03517444,68875.0,68874.0,1.13632448]
[1722215428225,0.03517444,68875.0,68874.0,1.36863248]
[1722215428226,0.09840203,68875.0,68874.0,1.36863248]
[1722215428412,0.03362024,68875.0,68874.0,1.36863248]
[1722215428833,0.03362024,68875.0,68874.0,1.13632448]
[1722215429005,0.03517444,68875.0,68874.0,1.13632448]
[1722215429213,0.03566926,68875.0,68874.0,1.13632448]
[1722215429412,0.03567156,68875.0,68874.0,1.13632448]
[1722215429815,0.07729238,68875.0,68874.0,1.03632448]
[1722215430954,0.07829238,68875.0,68874.0,1.13632448]
[1722215431551,0.07829238,68875.0,68874.0,0.67088513]
[1722215431727,0.07828837,68875.0,68874.0,0.78703913]
[1722215431930,0.07828837,68875.0,68874.0,1.01934713]
[1722215432288,0.03511736,68875.0,68874.0,1.10007337]
[1722215432441,0.03484488,68875.0,68874.0,1.10007337]
[1722215432634,0.03484488,68875.0,68874.0,1.25033294]
[1722215432635,0.03639908,68875.0,68874.0,1.25033294]
[1722215433016,0.03484488,68875.0,68874.0,1.25033294]
[1722215433425,0.03585845,68875.0,68874.0,1.25033294]
[1722215433651,0.03484488,68875.0,68874.0,1.25033294]
[1722215434047,0.03589108,68875.0,68874.0,1.25033294]
[1722215434259,0.03484488,68875.0,68874.0,1.25033294]
[1722215435028,0.03484488,68875.0,68874.0,1.1696067]
[1722215435253,0.0576464,68875.0,68874.0,1.25033294]
[1722215435661,0.05839209,68875.0,68874.0,1.25033294]
[1722215435801,0.05733054,68875.0,68874.0,1.25033294]
[1722215436218,0.03452902,68875.0,68874.0,1.25033294]
[1722215436448,0.03546108,68875.0,68874.0,1.25033294]
[1722215436773,0.03452902,68875.0,68874.0,1.25033294]
[1722215438731,0.00184,68875.0,68874.0,1.25033294]
[1722215439140,0.00184,68875.0,68874.0,1.48264094]
[1722215439346,0.00184,68875.0,68874.0,1.86824894]
[1722215439347,0.03471378,68875.0,68874.0,1.86824894]
[1722215439560,0.05751472,68875.0,68874.0,1.86824894]
[1722215441337,0.0573357,68875.0,68874.0,1.86824894]
[1722215441878,0.02464094,68875.0,68874.0,1.86824894]
[1722215442439,0.00184,68875.0,68874.0,1.86824894]
[1722215442667,0.03453826,68875.0,68874.0,1.86824894]
[1722215443467,0.0573387,68875.0,68874.0,1.86824894]
[1722215443870,0.03453826,68875.0,68874.0,1.86824894]
[1722215444153,0.03453826,68875.0,68874.0,2.10055694]
[1722215444352,0.04317928,68889.0,68888.0,0.13072624]
[1722215444601,0.08635857,68894.0,68888.0,0.13072624]
[1722215444602,0.0015542,68890.0,68889.0,0.79066824]
[1722215444753,0.04317928,68897.0,68896.0,0.116117]
[1722215444952,0.04317401,68897.0,68896.0,0.14080132]
[1722215445153,0.0431741,68897.0,68896.0,0.03196554]
[1722215445555,0.0431741,68899.0,68896.0,0.03196554]
[1722215446074,0.0431741,68897.0,68896.0,0.03196554]
[1722215446299,0.06476115,68898.0,68896.0,0.03196554]
[1722215446507,0.06476115,68899.0,68897.0,0.01788138]
[1722215446676,0.06476115,68899.0,68897.0,0.01688138]
[1722215446921,0.04206993,68898.0,68897.0,0.01688138]
[1722215447068,0.0634,68896.0,68882.0,0.285]
[1722215447258,0.0634,68885.0,68883.0,0.31316]
[1722215447499,0.1065542,68885.0,68883.0,0.31316]
[1722215447704,0.2226902,68885.0,68883.0,0.31316]
[1722215447904,0.1065542,68885.0,68883.0,0.31316]
[1722215448206,0.10654668,68885.0,68884.0,0.04217862]
[1722215448756,0.10654939,68885.0,68884.0,0.04217862]
[1722215449419,0.10654939,68885.0,68884.0,0.11730841]
[1722215449748,0.0634,68885.0,68884.0,0.11730841]
[1722215449980,0.0617,68888.0,68884.0,0.11730841]
[1722215450162,0.0617,68888.0,68885.0,0.06466104]
[1722215451202,0.0015542,68890.0,68885.0,0.06466104]
[1722215451403,0.02279815,68888.0,68885.0,0.06466104]
[1722215451904,0.02279815,68888.0,68886.0,0.00690499]
[1722215452107,0.02279815,68888.0,68887.0,0.06376938]
[1722215452742,0.02279815,68888.0,68887.0,0.07067226]
[1722215452943,0.02279815,68888.0,68887.0,0.06967226]
[1722215453147,1.00540324,68888.0,68887.0,0.00690288]
[1722215453477,2.292644,68888.0,68887.0,0.01690288]
[1722215453693,1.73736784,68888.0,68887.0,0.01]
[1722215454075,1.65570284,68888.0,68887.0,0.01]
[1722215454284,1.06650676,68884.0,68883.0,0.25656]
[1722215454485,4.60253385,68884.0,68883.0,0.25656]
[1722215454687,5.52747735,68884.0,68883.0,0.25656]
[1722215454880,5.31307635,68884.0,68883.0,0.25656]
[1722215455303,1.29894576,68875.0,68874.0,0.000924]
[1722215455466,5.90678869,68875.0,68874.0,0.000924]
[1722215455665,5.96156169,68875.0,68874.0,0.000924]
[1722215456210,5.79106035,68875.0,68874.0,0.000924]
[1722215456409,3.22413235,68875.0,68874.0,0.000924]
[1722215456769,3.14939235,68875.0,68874.0,0.000924]
[1722215457523,0.20525976,68855.0,68854.0,2.059]
[1722215457679,0.36784676,68852.0,68851.0,0.000924]
[1722215457879,0.61822896,68852.0,68851.0,0.00837008]
[1722215458101,0.74893696,68852.0,68851.0,0.00837008]
[1722215458307,0.75093696,68852.0,68851.0,0.00837008]
[1722215458484,0.75093696,68852.0,68851.0,0.000924]
[1722215458829,1.40021226,68852.0,68851.0,0.000924]
[1722215459162,1.3809385,68852.0,68851.0,0.000924]
[1722215459342,1.40021226,68852.0,68851.0,0.000924]
[1722215460172,1.1178915,68852.0,68851.0,0.000924]
[1722215460390,1.1178915,68852.0,68851.0,0.00862938]
[1722215460391,0.72641703,68852.0,68851.0,0.00862938]
[1722215460594,0.72641703,68852.0,68851.0,0.000924]
[1722215460595,1.33878103,68852.0,68851.0,0.000924]
[1722215460763,1.94863703,68852.0,68851.0,0.00841913]
[1722215460906,1.94863703,68852.0,68851.0,0.000924]
[1722215460907,1.93964737,68852.0,68851.0,0.000924]
[1722215461364,1.32979137,68852.0,68851.0,0.000924]
[1722215461783,2.62971937,68852.0,68851.0,0.000924]
[1722215463097,1.32979137,68852.0,68851.0,0.000924]
[1722215463859,2.57359646,68852.0,68851.0,0.000924]
[1722215464637,2.46600937,68852.0,68851.0,0.000924]
[1722215465038,2.46854117,68852.0,68851.0,0.000924]
[1722215465240,2.57612826,68852.0,68851.0,0.000924]
[1722215465444,2.46854117,68852.0,68851.0,0.000924]
[1722215465829,2.47054117,68852.0,68851.0,0.000924]
[1722215466045,2.46854117,68852.0,68851.0,0.000924]
[1722215466441,2.42702017,68852.0,68851.0,0.000924]
[1722215466652,2.36346217,68852.0,68851.0,0.000924]
[1722215466846,2.47090171,68852.0,68851.0,0.000924]
[1722215467050,2.48490171,68852.0,68851.0,0.000924]
[1722215467434,2.50767781,68852.0,68851.0,0.000924]
[1722215467751,2.49576681,68852.0,68851.0,0.000924]
[1722215468122,2.55403881,68852.0,68851.0,0.000924]
[1722215468530,2.39089285,68852.0,68851.0,0.000924]
[1722215468810,2.45397393,68852.0,68851.0,0.000924]
[1722215469654,2.43248295,68852.0,68851.0,0.000924]